[Event "Najdorf Memorial-A 2022"]
[Site "Warsaw"]
[Date "2022.07.10"]
[Round "2.8"]
[White "Deszczynski, Adam"]
[Black "Lewandrowski, Tomasz"]
[Result "1-0"]
[ECO "D02"]
[WhiteElo "2321"]
[BlackElo "1902"]
[Annotator "RC"]
[PlyCount "75"]
[EventDate "2022.07.09"]
[EventType "swiss"]
[EventCountry "POL"]
[SourceTitle "playchess.com"]
[Source "ChessBase"]
[SourceQuality "1"]
[TimeControl "40/5400+30:1800+30"]

1. d4 {[%emt 0:01:10]} d5 {[%emt 0:00:11]} 2. Nf3 {[%emt 0:02:43]} Nf6 {[%emt 0:00:58]} 3. g3 {[%emt 0:01:27]} e6 {[%emt 0:01:15]} 4. Bg2 {[%emt 0:01:05]} Be7 {[%emt 0:00:20]} 5. c4 {[%emt 0:01:53]} O-O {[%emt 0:00:33]} 6. O-O {[%emt 0:01:53]} c6 {[%emt 0:01:09]} 7. Nc3 {[%emt 0:06:03]} dxc4 {[%emt 0:00:55]} 8. Ne5 {[%emt 0:01:10]} Nd5 {[%emt 0:07:11]} 9. Nxc4 {[%emt 0:01:46]} Nxc3 {[%emt 0:01:25]} 10. bxc3 {[%emt 0:07:23]} Nd7 {[%emt 0:11:22]} 11. a4 {[%emt 0:04:32]} Nb6 {[%emt 0:07:21]} 12. Qb3 {[%emt 0:00:27]} Nxc4 {[%emt 0:00:23]} 13. Qxc4 {[%emt 0:08:18]} Bd7 {[%emt 0:12:48]} 14. Ba3 {[%emt 0:12:52]} Rc8 15. a5 {[%emt 0:01:26]} Rc7 {[%emt 0:10:59]} 16. Bc5 {[%emt 0:00:30]} Bxc5 {[%emt 0:01:16]} 17. Qxc5 {[%emt 0:04:36]} a6 {[%emt 0:03:54]} 18. e4 Re8 19. f4 {[%emt 0:06:50]} Qe7 {[%emt 0:02:17]} 20. Qxe7 {[%emt 0:09:56]} Rxe7 {[%emt 0:00:01]} 21. c4 {[%emt 0:05:13]} Be8 {[%emt 0:02:31]} 22. e5 {[%emt 0:04:10]} f6 {[%emt 0:03:21]} 23. Rfe1 {[%emt 0:01:50]} Bf7 {[%emt 0:05:19]} 24. Kf2 {[%emt 0:02:20]} Kf8 {[%emt 0:03:51]} 25. Rad1 {[%emt 0:03:19]} Rcd7 {[%emt 0:00:39]} 26. Ke3 {[%emt 0:03:49]} fxe5 {[%emt 0:03:09]} 27. dxe5 {[%emt 0:00:25]} Bh5 {[%emt 0:01:38]} 28. Rd6 {[%emt 0:00:26]} Rxd6 {[%emt 0:05:32]} 29. exd6 {[%emt 0:00:09]} Rd7 {[%emt 0:00:08]} 30. c5 {[%emt 0:01:07]} Rd8 {[%emt 0:02:11]} 31. Kd4 {[%emt 0:01:29]} Bf7 {[%emt 0:00:54]} 32. Bh3 {[%emt 0:02:16]} Re8 {[%emt 0:00:35]} 33. f5 {[%emt 0:00:53]} exf5 {[%emt 0:01:55]} 34. Rxe8+ {[%emt 0:00:13]} Kxe8 {[%emt 0:00:22]} 35. Bxf5 {[%emt 0:00:07]} Kd8 {[%emt 0:00:27]} 36. Bxh7 {[%emt 0:00:18]} Be6 {[%emt 0:03:14]} 37. Ke5 {[%emt 0:01:08]} Bd7 {[%emt 0:01:50]} 38. h4 {[%emt 0:00:29]} 1-0

[Event "Najdorf Memorial-A 2022"]
[Site "Warsaw"]
[Date "2022.07.10"]
[Round "2.8"]
[White "Basiaga, Sebastian"]
[Black "Gorkiewicz, Mateusz"]
[Result "1/2-1/2"]
[ECO "C45"]
[WhiteElo "1770"]
[BlackElo "2023"]
[Annotator "NA RC"]
[PlyCount "87"]
[EventDate "2022.07.09"]
[EventType "swiss"]
[EventCountry "POL"]
[SourceTitle "playchess.com"]
[Source "ChessBase"]
[SourceQuality "1"]
[TimeControl "40/5400+30:1800+30"]

1. e4 {[%emt 0:00:02]} e5 {[%emt 0:00:14]} 2. Nf3 {[%emt 0:00:07]} Nc6 {[%emt 0:00:14]} 3. d4 {[%emt 0:00:27]} exd4 {[%emt 0:00:17]} 4. Nxd4 {[%emt 0:00:03]} Bc5 {[%emt 0:00:27]} 5. Nb3 {[%emt 0:00:17]} Bb6 {[%emt 0:00:18]} 6. Nc3 {[%emt 0:00:06]} Nf6 {[%emt 0:00:51]} 7. Qe2 {[%emt 0:00:29]} O-O {[%emt 0:05:44]} 8. Bg5 {[%emt 0:00:27]} h6 {[%emt 0:10:34]} 9. Bh4 {[%emt 0:00:38]} g5 {[%emt 0:07:44]} 10. Bg3 {[%emt 0:00:46]} d5 {[%emt 0:05:22]} 11. O-O-O {[%emt 0:17:28]} d4 {[%emt 0:01:16]} 12. f3 {[%emt 0:13:15]} Be6 {[%emt 0:04:56]} 13. Qe1 {[%emt 0:14:46]} Qe7 {[%emt 0:05:23]} 14. Na4 {[%emt 0:01:38]} Rfd8 {[%emt 0:13:03]} 15. h4 {[%emt 0:01:12]} Bxb3 {[%emt 0:19:24]} 16. axb3 {[%emt 0:02:17]} Ba5 {[%emt 0:02:14]} 17. Qf2 {[%emt 0:02:28]} g4 {[%emt 0:01:26]} 18. fxg4 {[%emt 0:10:35]} Nxe4 {[%emt 0:11:24]} 19. Qf3 {[%emt 0:02:30]} Nxg3 {[%emt 0:00:42]} 20. Qxg3 {[%emt 0:00:02]} Qe3+ {[%emt 0:02:33]} 21. Qxe3 {[%emt 0:00:09]} dxe3 {[%emt 0:00:03]} 22. c3 {[%emt 0:08:47]} Ne5 {[%emt 0:00:49]} 23. Be2 {[%emt 0:00:33]} Bb6 {[%emt 0:02:51]} 24. Rh3 {[%emt 0:01:11]} Rxd1+ {[%emt 0:01:27]} 25. Kxd1 {[%emt 0:05:08]} Rd8+ {[%emt 0:00:21]} 26. Ke1 {[%emt 0:00:09]} Nd3+ {[%emt 0:01:52]} 27. Bxd3 {[%emt 0:04:26]} Rxd3 {[%emt 0:00:04]} 28. Rg3 {[%emt 0:00:02]} Kg7 {[%emt 0:01:05]} 29. b4 {[%emt 0:00:51]} Kf6 {[%emt 0:01:46]} 30. Nxb6 {[%emt 0:01:18]} cxb6 {[%emt 0:00:03]} 31. Ke2 {[%emt 0:00:05]} Rd2+ {[%emt 0:00:03]} 32. Kxe3 {[%emt 0:00:06]} Rxb2 {[%emt 0:00:03]} 33. Rf3+ {[%emt 0:00:41]} Kg6 {[%emt 0:00:07]} 34. g3 {[%emt 0:00:15]} a5 {[%emt 0:00:14]} 35. h5+ {[%emt 0:03:55]} Kg7 {[%emt 0:00:52]} 36. bxa5 {[%emt 0:05:17]} bxa5 {[%emt 0:00:04]} 37. Rf5 {[%emt 0:00:04]} b6 {[%emt 0:01:41]} 38. g5 {[%emt 0:00:10]} hxg5 {[%emt 0:00:22]} 39. Rxg5+ {[%emt 0:00:05]} Kh6 {[%emt 0:01:28]} 40. Rf5 {[%emt 0:00:00]} a4 {[%emt 0:00:00]} 41. Rxf7 {[%emt 0:09:40]} Kxh5 {[%emt 0:01:16]} 42. Ra7 {[%emt 0:00:50]} b5 {[%emt 0:03:47]} 43. c4 {[%emt 0:03:17]} bxc4 {[%emt 0:01:47]} 44. Ke4 1/2-1/2

[Event "Najdorf Memorial-A 2022"]
[Site "Warsaw"]
[Date "2022.07.10"]
[Round "2.9"]
[White "Chomczyk, Marek"]
[Black "Kaminski, Jan"]
[Result "1-0"]
[ECO "B90"]
[WhiteElo "2290"]
[BlackElo "1870"]
[Annotator "RC"]
[PlyCount "93"]
[EventDate "2022.07.09"]
[EventType "swiss"]
[EventCountry "POL"]
[SourceTitle "playchess.com"]
[Source "ChessBase"]
[SourceQuality "1"]
[TimeControl "40/5400+30:1800+30"]

1. e4 {[%emt 0:00:02]} c5 {[%emt 0:01:23]} 2. Nf3 {[%emt 0:00:07]} d6 {[%emt 0:00:37]} 3. d4 {[%emt 0:00:08]} Nf6 {[%emt 0:00:11]} 4. Nc3 {[%emt 0:00:06]} cxd4 {[%emt 0:00:03]} 5. Nxd4 {[%emt 0:00:06]} a6 {[%emt 0:00:03]} 6. Rg1 {[%emt 0:00:17]} e5 {[%emt 0:02:15]} 7. Nb3 {[%emt 0:00:11]} b5 {[%emt 0:02:03]} 8. a4 {[%emt 0:15:06]} b4 {[%emt 0:01:38]} 9. Nd5 {[%emt 0:00:09]} Bb7 {[%emt 0:00:35]} 10. Nxf6+ {[%emt 0:09:38]} gxf6 {[%emt 0:05:46]} 11. Bc4 {[%emt 0:01:44]} Bxe4 {[%emt 0:14:39]} 12. Bd5 {[%emt 0:00:25]} Bxd5 {[%emt 0:00:01]} 13. Qxd5 {[%emt 0:00:10]} Nd7 {[%emt 0:00:10]} 14. Bd2 {[%emt 0:11:10]} Rc8 {[%emt 0:06:58]} 15. Bxb4 {[%emt 0:03:57]} Qb6 {[%emt 0:10:50]} 16. c3 {[%emt 0:20:40]} f5 {[%emt 0:05:41]} 17. a5 {[%emt 0:00:14]} Qc6 {[%emt 0:03:32]} 18. Qxc6 {[%emt 0:05:51]} Rxc6 {[%emt 0:00:01]} 19. O-O-O {[%emt 0:00:33]} Rg8 {[%emt 0:04:46]} 20. g3 {[%emt 0:00:02]} Kd8 {[%emt 0:04:27]} 21. f4 {[%emt 0:01:48]} f6 {[%emt 0:09:47]} 22. Kb1 {[%emt 0:01:43]} Kc7 {[%emt 0:00:34]} 23. Rgf1 {[%emt 0:00:53]} Be7 {[%emt 0:07:01]} 24. fxe5 {[%emt 0:00:53]} fxe5 {[%emt 0:00:09]} 25. Rxf5 {[%emt 0:00:08]} Nf6 {[%emt 0:03:03]} 26. Nd2 {[%emt 0:02:40]} Rg7 {[%emt 0:00:55]} 27. Nf1 {[%emt 0:00:19]} Ne4 {[%emt 0:05:37]} 28. Ne3 {[%emt 0:08:44]} Nc5 {[%emt 0:02:12]} 29. Nd5+ {[%emt 0:01:15]} Kd7 {[%emt 0:00:21]} 30. Rh5 {[%emt 0:02:39]} Bd8 {[%emt 0:01:20]} 31. Bxc5 {[%emt 0:03:00]} Rxc5 {[%emt 0:00:18]} 32. b4 {[%emt 0:00:07]} Rc4 {[%emt 0:01:49]} 33. Rxe5 {[%emt 0:01:14]} dxe5 {[%emt 0:01:21]} 34. Nb6+ {[%emt 0:00:05]} Kc6 {[%emt 0:00:17]} 35. Nxc4 {[%emt 0:00:10]} Bc7 {[%emt 0:00:05]} 36. Kc2 {[%emt 0:00:36]} Rf7 {[%emt 0:00:05]} 37. Kb3 {[%emt 0:00:51]} Rf2 {[%emt 0:00:11]} 38. Re1 {[%emt 0:02:58]} Kd5 {[%emt 0:02:09]} 39. Ne3+ {[%emt 0:01:42]} Ke6 {[%emt 0:00:25]} 40. Ng4 {[%emt 0:00:00]} Rf3 {[%emt 0:00:00]} 41. Re2 {[%emt 0:00:45]} Bb8 {[%emt 0:02:06]} 42. Nf2 {[%emt 0:00:33]} Kf5 {[%emt 0:01:00]} 43. Kc4 {[%emt 0:00:49]} h5 {[%emt 0:00:28]} 44. Ne4 {[%emt 0:00:24]} Ba7 {[%emt 0:00:35]} 45. Nc5 {[%emt 0:01:58]} Bxc5 {[%emt 0:00:20]} 46. bxc5 {[%emt 0:00:05]} Ke6 {[%emt 0:00:37]} 47. Rd2 {[%emt 0:00:12]} 1-0

[Event "Najdorf Memorial-A 2022"]
[Site "Warsaw"]
[Date "2022.07.10"]
[Round "2.9"]
[White "Rejniak, Zuzanna"]
[Black "Kulpa, Zuzanna"]
[Result "1/2-1/2"]
[ECO "B53"]
[WhiteElo "1813"]
[BlackElo "1985"]
[Annotator "NA RC"]
[PlyCount "86"]
[EventDate "2022.07.09"]
[EventType "swiss"]
[EventCountry "POL"]
[SourceTitle "playchess.com"]
[Source "ChessBase"]
[SourceQuality "1"]
[TimeControl "40/5400+30:1800+30"]

1. e4 {[%emt 0:00:02]} c5 {[%emt 0:00:04]} 2. Nf3 {[%emt 0:00:11]} d6 {[%emt 0:00:06]} 3. d4 {[%emt 0:00:07]} cxd4 {[%emt 0:00:07]} 4. Qxd4 {[%emt 0:00:05]} a6 {[%emt 0:01:03]} 5. Be3 {[%emt 0:00:06]} Nc6 {[%emt 0:00:07]} 6. Qd2 {[%emt 0:00:07]} Nf6 {[%emt 0:01:29]} 7. Nc3 {[%emt 0:00:08]} g6 {[%emt 0:01:19]} 8. h3 {[%emt 0:00:07]} Bg7 {[%emt 0:00:27]} 9. Bd3 {[%emt 0:00:08]} b5 {[%emt 0:02:01]} 10. O-O {[%emt 0:06:14]} O-O {[%emt 0:00:53]} 11. Bh6 {[%emt 0:07:53]} Bb7 {[%emt 0:03:10]} 12. Bxg7 {[%emt 0:00:39]} Kxg7 {[%emt 0:00:02]} 13. Rfe1 {[%emt 0:05:55]} Rc8 {[%emt 0:05:01]} 14. Nd5 {[%emt 0:07:37]} Nd7 {[%emt 0:03:30]} 15. a4 {[%emt 0:06:29]} Nde5 {[%emt 0:02:36]} 16. Nxe5 {[%emt 0:01:08]} Nxe5 {[%emt 0:00:06]} 17. axb5 {[%emt 0:00:30]} Bxd5 {[%emt 0:00:45]} 18. exd5 {[%emt 0:00:16]} axb5 {[%emt 0:00:06]} 19. Bxb5 {[%emt 0:02:48]} Qb6 {[%emt 0:02:07]} 20. Qe2 {[%emt 0:09:27]} Qd4 {[%emt 0:04:40]} 21. c4 {[%emt 0:05:59]} Ra8 {[%emt 0:09:19]} 22. Rad1 {[%emt 0:01:37]} Qc5 {[%emt 0:00:43]} 23. Qe3 {[%emt 0:00:18]} Qxe3 {[%emt 0:05:48]} 24. Rxe3 {[%emt 0:00:05]} Rfc8 {[%emt 0:00:20]} 25. Rc1 {[%emt 0:05:44]} g5 {[%emt 0:04:23]} 26. Ra3 {[%emt 0:11:34]} Rab8 {[%emt 0:03:59]} 27. Rcc3 {[%emt 0:02:09]} Rc7 {[%emt 0:00:57]} 28. g3 {[%emt 0:08:02]} Kf6 {[%emt 0:05:50]} 29. Ra4 {[%emt 0:04:26]} Rb6 {[%emt 0:04:52]} 30. Rca3 {[%emt 0:03:50]} e6 {[%emt 0:03:18]} 31. dxe6 {[%emt 0:00:44]} fxe6 {[%emt 0:00:06]} 32. Ra6 {[%emt 0:01:44]} Rxa6 33. Rxa6 {[%emt 0:03:57]} Nxc4 {[%emt 0:03:48]} 34. Bxc4 {[%emt 0:01:31]} Rxc4 {[%emt 0:00:02]} 35. Rxd6 {[%emt 0:00:10]} Rb4 {[%emt 0:00:53]} 36. Rd2 {[%emt 0:00:04]} h5 {[%emt 0:02:04]} 37. Kg2 {[%emt 0:01:33]} Rb3 {[%emt 0:03:02]} 38. Re2 {[%emt 0:00:22]} Kf5 {[%emt 0:02:50]} 39. Rc2 {[%emt 0:00:57]} e5 {[%emt 0:06:25]} 40. Re2 {[%emt 0:00:00]} Rb4 {[%emt 0:00:00]} 41. Rc2 {[%emt 0:05:15]} Rb3 {[%emt 0:01:45]} 42. Re2 {[%emt 0:00:49]} Rb4 {[%emt 0:00:31]} 43. Rc2 {[%emt 0:01:27]} Rb3 {[%emt 0:00:07]} 1/2-1/2

[Event "Najdorf Memorial-A 2022"]
[Site "Warsaw"]
[Date "2022.07.10"]
[Round "2.10"]
[White "Sriram, Jha"]
[Black "Wadelek, Karol"]
[Result "1-0"]
[ECO "E16"]
[WhiteElo "2361"]
[BlackElo "1944"]
[Annotator "RC"]
[PlyCount "131"]
[EventDate "2022.07.09"]
[EventType "swiss"]
[EventCountry "POL"]
[SourceTitle "playchess.com"]
[Source "ChessBase"]
[SourceQuality "1"]
[TimeControl "40/5400+30:1800+30"]

1. d4 Nf6 2. Nf3 e6 3. c4 Bb4+ 4. Bd2 Qe7 5. g3 O-O 6. Bg2 Nc6 7. O-O Bxd2 8. Qxd2 d6 9. Nc3 e5 10. d5 Nb8 11. e4 a5 12. Ne1 Nbd7 13. Nd3 b6 14. f4 Nc5 15. Nxc5 bxc5 16. fxe5 Qxe5 17. Nb5 Bd7 18. Nxc7 Rab8 19. b3 a4 20. Qd3 h5 21. Rab1 h4 22. gxh4 Ng4 23. Qg3 Rb7 24. Nb5 Qxg3 25. hxg3 Bxb5 26. cxb5 Rxb5 27. bxa4 Ra5 28. Bf3 Nf6 29. Rb6 Rd8 30. Bd1 Nxe4 31. Rb7 Rf8 32. Rd7 Ra6 33. Bc2 Nf6 34. Bd3 Nxd7 35. Bxa6 Ra8 36. Bb5 Nb6 37. Rf3 Kf8 38. Bc6 Ra7 39. Re3 g6 40. Rb3 Nc4 41. Rb8+ Kg7 42. Kf2 Kf6 43. Ke2 Ne5 44. Bb5 Ke7 45. Kd2 Kf6 46. Rb6 Ke7 47. Kc3 Ra8 48. Kb3 Ra7 49. Bc6 Ra5 50. Rb5 Ra6 51. Bb7 Ra7 52. a5 Kd8 53. a6 Kc7 54. Kc3 Kd8 55. Rb1 Kc7 56. Rf1 Kd8 57. g4 Ke7 58. Rf4 f6 59. h5 gxh5 60. gxh5 Kf7 61. Rf1 Kg7 62. Kb3 Nd7 63. Kc4 Kh6 64. Rf5 Nb8 65. Rxf6+ Kxh5 66. Rxd6 1-0

[Event "Najdorf Memorial-A 2022"]
[Site "Warsaw"]
[Date "2022.07.10"]
[Round "2.10"]
[White "Starosciak, Szymon"]
[Black "Fiedorek, Michal"]
[Result "1-0"]
[ECO "B42"]
[WhiteElo "1901"]
[BlackElo "2289"]
[Annotator "RC"]
[PlyCount "81"]
[EventDate "2022.07.09"]
[EventType "swiss"]
[EventCountry "POL"]
[SourceTitle "playchess.com"]
[Source "ChessBase"]
[SourceQuality "1"]
[TimeControl "40/5400+30:1800+30"]

1. e4 {[%emt 0:00:14]} c5 {[%emt 0:00:20]} 2. Nf3 {[%emt 0:00:14]} e6 {[%emt 0:00:06]} 3. d4 {[%emt 0:00:51]} cxd4 {[%emt 0:00:05]} 4. Nxd4 {[%emt 0:00:05]} a6 {[%emt 0:00:06]} 5. Bd3 {[%emt 0:00:45]} Bc5 {[%emt 0:00:17]} 6. Nb3 {[%emt 0:00:47]} Ba7 {[%emt 0:00:05]} 7. O-O {[%emt 0:02:20]} Ne7 {[%emt 0:00:32]} 8. Qe2 {[%emt 0:01:37]} O-O {[%emt 0:00:17]} 9. Be3 {[%emt 0:01:12]} Nbc6 {[%emt 0:00:17]} 10. Bxa7 {[%emt 0:02:56]} Rxa7 {[%emt 0:00:11]} 11. c4 {[%emt 0:06:51]} d6 {[%emt 0:01:10]} 12. Nc3 {[%emt 0:04:33]} e5 {[%emt 0:00:30]} 13. Rfd1 {[%emt 0:05:02]} Be6 {[%emt 0:01:30]} 14. Rd2 {[%emt 0:07:28]} Ng6 {[%emt 0:06:18]} 15. Qe3 {[%emt 0:01:58]} b6 {[%emt 0:05:22]} 16. Bf1 {[%emt 0:03:34]} Qb8 {[%emt 0:01:13]} 17. Rad1 {[%emt 0:01:55]} Rd7 {[%emt 0:01:34]} 18. Nd5 {[%emt 0:03:06]} Bxd5 {[%emt 0:06:38]} 19. cxd5 {[%emt 0:01:16]} Nce7 {[%emt 0:01:10]} 20. Rc1 {[%emt 0:05:07]} Qb7 {[%emt 0:08:48]} 21. f3 {[%emt 0:02:32]} Rc7 {[%emt 0:07:25]} 22. Rdc2 {[%emt 0:00:36]} Rxc2 {[%emt 0:01:13]} 23. Rxc2 {[%emt 0:00:06]} f5 {[%emt 0:00:19]} 24. g3 {[%emt 0:10:49]} f4 {[%emt 0:15:23]} 25. Qc3 {[%emt 0:02:36]} b5 {[%emt 0:04:45]} 26. Kg2 {[%emt 0:08:38]} fxg3 {[%emt 0:07:27]} 27. hxg3 {[%emt 0:00:08]} Qb6 {[%emt 0:00:20]} 28. Qc7 {[%emt 0:06:47]} Qe3 {[%emt 0:04:58]} 29. Rc3 {[%emt 0:01:24]} Qh6 {[%emt 0:08:05]} 30. Kf2 {[%emt 0:06:10]} b4 {[%emt 0:02:45]} 31. Rc1 {[%emt 0:07:02]} Rc8 {[%emt 0:05:19]} 32. Qxd6 {[%emt 0:00:41]} Rxc1 {[%emt 0:01:27]} 33. Qe6+ {[%emt 0:00:43]} Kf8 {[%emt 0:04:51]} 34. Nxc1 {[%emt 0:00:08]} Qxc1 {[%emt 0:00:06]} 35. d6 {[%emt 0:00:35]} Qd2+ {[%emt 0:01:32]} 36. Kg1 {[%emt 0:00:27]} Qe3+ {[%emt 0:00:26]} 37. Kg2 {[%emt 0:00:44]} Qd2+ {[%emt 0:01:36]} 38. Kh3 {[%emt 0:01:44]} Qh6+ {[%emt 0:02:42]} 39. Kg4 {[%emt 0:01:59]} Qh1 {[%emt 0:02:05]} 40. d7 {[%emt 0:00:00]} h5+ {[%emt 0:00:00]} 41. Kg5 {[%emt 0:01:24]} 1-0

[Event "Najdorf Memorial-A 2022"]
[Site "Warsaw"]
[Date "2022.07.10"]
[Round "2.11"]
[White "Mickiewicz, Piotr"]
[Black "Szwaj, Jacek"]
[Result "1-0"]
[ECO "D52"]
[WhiteElo "2284"]
[BlackElo "1938"]
[Annotator "RC"]
[PlyCount "75"]
[EventDate "2022.07.09"]
[EventType "swiss"]
[EventCountry "POL"]
[SourceTitle "playchess.com"]
[Source "ChessBase"]
[SourceQuality "1"]
[TimeControl "40/5400+30:1800+30"]

1. d4 {[%emt 0:22:05]} d5 {[%emt 0:00:34]} 2. c4 {[%emt 0:00:19]} e6 {[%emt 0:00:09]} 3. Nc3 {[%emt 0:00:44]} Nf6 {[%emt 0:00:25]} 4. Bg5 {[%emt 0:02:19]} Nbd7 {[%emt 0:01:37]} 5. e3 {[%emt 0:01:00]} c6 {[%emt 0:00:35]} 6. Nf3 {[%emt 0:02:32]} Qa5 {[%emt 0:01:32]} 7. cxd5 {[%emt 0:00:44]} exd5 {[%emt 0:06:05]} 8. Bd3 {[%emt 0:29:53]} Ne4 {[%emt 0:04:48]} 9. O-O {[%emt 0:00:39]} Nxg5 {[%emt 0:05:55]} 10. Nxg5 {[%emt 0:00:08]} Nf6 {[%emt 0:00:59]} 11. Qc2 {[%emt 0:07:27]} h6 {[%emt 0:03:12]} 12. Nf3 {[%emt 0:00:03]} Bd6 {[%emt 0:00:23]} 13. Rae1 {[%emt 0:00:26]} O-O {[%emt 0:01:58]} 14. Ne5 {[%emt 0:00:08]} Bxe5 {[%emt 0:11:18]} 15. dxe5 {[%emt 0:00:03]} Ne4 {[%emt 0:02:01]} 16. Bxe4 {[%emt 0:01:24]} dxe4 {[%emt 0:00:11]} 17. Qxe4 {[%emt 0:00:14]} Re8 {[%emt 0:00:10]} 18. f4 {[%emt 0:00:17]} f5 {[%emt 0:02:16]} 19. Qc2 {[%emt 0:03:18]} Be6 {[%emt 0:00:39]} 20. e4 {[%emt 0:01:50]} g6 {[%emt 0:00:37]} 21. exf5 {[%emt 0:01:26]} gxf5 {[%emt 0:00:54]} 22. Rd1 {[%emt 0:06:14]} Kf7 {[%emt 0:03:06]} 23. Rd6 {[%emt 0:02:46]} Qc5+ {[%emt 0:02:27]} 24. Qf2 {[%emt 0:05:31]} Qxf2+ {[%emt 0:05:00]} 25. Kxf2 {[%emt 0:00:10]} Rad8 {[%emt 0:00:39]} 26. Rfd1 {[%emt 0:00:08]} Ke7 {[%emt 0:01:56]} 27. Ke3 {[%emt 0:04:44]} Rxd6 {[%emt 0:01:10]} 28. Rxd6 {[%emt 0:00:04]} Rg8 {[%emt 0:00:23]} 29. g3 {[%emt 0:00:58]} h5 {[%emt 0:00:04]} 30. Ne2 {[%emt 0:03:42]} c5 {[%emt 0:02:35]} 31. Nc3 {[%emt 0:01:12]} h4 {[%emt 0:00:16]} 32. Kf2 {[%emt 0:00:45]} hxg3+ {[%emt 0:01:31]} 33. hxg3 {[%emt 0:00:03]} Rh8 {[%emt 0:01:04]} 34. Kg2 {[%emt 0:00:15]} Rc8 {[%emt 0:01:51]} 35. g4 {[%emt 0:02:47]} fxg4 {[%emt 0:01:49]} 36. Kg3 {[%emt 0:00:10]} Rh8 {[%emt 0:00:53]} 37. Nd5+ {[%emt 0:00:07]} Kf7 {[%emt 0:00:31]} 38. f5 {[%emt 0:00:08]} 1-0

[Event "Najdorf Memorial-A 2022"]
[Site "Warsaw"]
[Date "2022.07.10"]
[Round "2.11"]
[White "Fiszer, Bartosz"]
[Black "Spicak, Krzysztof"]
[Result "1-0"]
[ECO "B06"]
[WhiteElo "2228"]
[BlackElo "1858"]
[Annotator "RC"]
[PlyCount "97"]
[EventDate "2022.07.09"]
[EventType "swiss"]
[EventCountry "POL"]
[SourceTitle "playchess.com"]
[Source "ChessBase"]
[SourceQuality "1"]
[TimeControl "40/5400+30:1800+30"]

1. e4 {[%emt 0:00:05]} g6 {[%emt 0:00:59]} 2. d4 {[%emt 0:00:30]} Bg7 {[%emt 0:00:07]} 3. Nc3 {[%emt 0:00:06]} d6 {[%emt 0:00:16]} 4. Be3 {[%emt 0:00:18]} Nf6 {[%emt 0:01:15]} 5. f3 {[%emt 0:00:09]} c6 {[%emt 0:01:18]} 6. Qd2 {[%emt 0:00:54]} h5 {[%emt 0:00:34]} 7. a3 {[%emt 0:05:03]} b5 {[%emt 0:04:40]} 8. Bd3 {[%emt 0:02:25]} a6 {[%emt 0:04:12]} 9. Nge2 {[%emt 0:04:53]} Nbd7 {[%emt 0:03:27]} 10. f4 {[%emt 0:02:36]} Ng4 {[%emt 0:02:56]} 11. Bg1 {[%emt 0:00:26]} c5 {[%emt 0:01:14]} 12. h3 {[%emt 0:19:41]} cxd4 {[%emt 0:02:40]} 13. Bxd4 {[%emt 0:06:56]} e5 {[%emt 0:16:23]} 14. Bg1 {[%emt 0:01:00]} Ngf6 {[%emt 0:00:06]} 15. O-O-O {[%emt 0:00:17]} Bb7 {[%emt 0:02:51]} 16. Kb1 {[%emt 0:00:40]} Qc7 {[%emt 0:12:39]} 17. Bxb5 {[%emt 0:02:00]} Nxe4 {[%emt 0:01:05]} 18. Nxe4 {[%emt 0:00:30]} Bxe4 {[%emt 0:00:16]} 19. Nc3 {[%emt 0:00:52]} Bf5 {[%emt 0:01:34]} 20. Nd5 {[%emt 0:08:09]} Qxc2+ {[%emt 0:00:30]} 21. Qxc2 {[%emt 0:01:15]} Bxc2+ {[%emt 0:00:09]} 22. Kxc2 {[%emt 0:00:03]} Rc8+ {[%emt 0:00:12]} 23. Nc3 {[%emt 0:00:39]} axb5 {[%emt 0:00:06]} 24. Rxd6 {[%emt 0:00:20]} exf4 {[%emt 0:06:10]} 25. Bd4 {[%emt 0:01:03]} Bxd4 {[%emt 0:00:13]} 26. Rxd4 {[%emt 0:00:06]} Nf6 {[%emt 0:00:11]} 27. Rxf4 {[%emt 0:15:22]} Nd5 {[%emt 0:03:47]} 28. Re4+ {[%emt 0:00:08]} Kf8 {[%emt 0:00:05]} 29. Re5 {[%emt 0:00:14]} Nxc3 {[%emt 0:02:39]} 30. bxc3 {[%emt 0:00:07]} Kg7 {[%emt 0:00:04]} 31. Rxb5 {[%emt 0:00:06]} Rhe8 {[%emt 0:00:12]} 32. Rd1 {[%emt 0:00:45]} Ra8 {[%emt 0:01:31]} 33. Rb3 {[%emt 0:01:33]} Re3 {[%emt 0:07:05]} 34. Rd3 {[%emt 0:00:50]} Re2+ {[%emt 0:00:13]} 35. Rd2 {[%emt 0:00:06]} Re3 {[%emt 0:00:05]} 36. Kb2 {[%emt 0:00:35]} Re6 {[%emt 0:07:32]} 37. c4 {[%emt 0:00:29]} f5 {[%emt 0:02:43]} 38. Rc2 {[%emt 0:01:08]} h4 {[%emt 0:00:26]} 39. c5 {[%emt 0:00:17]} Raa6 {[%emt 0:00:13]} 40. Rb4 {[%emt 0:00:00]} g5 {[%emt 0:00:00]} 41. a4 {[%emt 0:02:21]} Kf6 {[%emt 0:00:43]} 42. Kb3 {[%emt 0:02:28]} Rec6 {[%emt 0:01:38]} 43. Rcc4 {[%emt 0:03:46]} Ke5 {[%emt 0:00:56]} 44. Rb5 {[%emt 0:01:30]} Kd5 {[%emt 0:00:33]} 45. a5 {[%emt 0:00:52]} f4 {[%emt 0:06:12]} 46. Kb4 {[%emt 0:03:26]} Ra7 {[%emt 0:00:39]} 47. Rb6 {[%emt 0:01:01]} Re7 {[%emt 0:02:10]} 48. Rc2 {[%emt 0:02:32]} Re4+ {[%emt 0:01:41]} 49. Kb5 {[%emt 0:00:06]} 1-0